bitfinex/quotes_ETHUSD_20250519
["timestamp","ask_amount","ask_price","bid_price","bid_amount"]
[1747692959135,4.22535398,2498.2,2498.1,27.176]
[1747692959283,5.81061873,2498.2,2498.1,9.608]
[1747692959488,6.18140356,2498.2,2498.1,0.105]
[1747692959786,6.56091563,2498.2,2498.1,0.105]
[1747692959990,6.61095435,2498.2,2498.1,0.105]
[1747692960229,7.16095435,2498.2,2498.1,0.105]
[1747692960438,7.11091563,2498.2,2498.1,0.105]
[1747692961204,6.56091563,2498.2,2498.1,0.105]
[1747692961402,7.11091563,2498.2,2498.1,0.105]
[1747692962006,6.56091563,2498.2,2498.1,0.105]
[1747692962903,6.1901308,2498.2,2498.1,17.386]
[1747692963430,6.1901308,2498.2,2498.1,26.89]
[1747692964001,6.1901308,2498.2,2498.1,17.386]
[1747692964206,6.1901308,2498.2,2498.1,26.89]
[1747692964511,5.81061873,2498.2,2498.1,26.89]
[1747692965106,4.59611873,2498.2,2498.1,26.89]
[1747692965344,4.37364682,2498.2,2498.1,26.89]
[1747692966259,4.00288207,2498.2,2498.1,26.89]
[1747692969461,5.10368207,2498.2,2498.1,26.89]
[1747692969962,5.47366359,2498.2,2498.1,26.89]
[1747692970662,5.69564799,2498.2,2498.1,26.89]
[1747692970869,6.07444479,2498.2,2498.1,26.89]
[1747692972273,5.69564799,2498.2,2498.1,26.89]
[1747692973844,6.07444479,2498.2,2498.1,26.89]
[1747692974537,4.97364479,2498.2,2498.1,26.89]
[1747692975468,4.59484799,2498.2,2498.1,26.89]
[1747692976043,4.37286359,2498.2,2498.1,26.89]
[1747692977277,4.37286359,2498.2,2498.1,0.105]
[1747692977575,5.53896359,2498.2,2498.1,0.105]
[1747692977776,6.13127693,2498.2,2498.1,0.105]
[1747692978193,7.13941014,2498.2,2498.1,0.105]
[1747692978555,7.73944896,2498.2,2498.1,0.105]
[1747692978794,7.68941014,2498.2,2498.1,0.105]
[1747692979209,7.13941014,2498.2,2498.1,0.105]
[1747692979492,15.13941014,2498.2,2498.1,0.105]
[1747692980608,15.68941014,2498.2,2498.1,0.105]
[1747692980762,4.00336282,2497.9,2497.8,11.23278237]
[1747692980960,5.66636966,2497.9,2497.8,11.23278237]
[1747692981195,5.88847616,2497.9,2497.8,11.23278237]
[1747692981595,16.93230409,2497.9,2497.8,11.23278237]
[1747692982106,15.26659089,2497.9,2497.8,11.23278237]
[1747692982283,15.26659089,2497.9,2497.8,10.97263228]
[1747692982973,15.26659089,2497.9,2497.8,10.01214292]
[1747692983595,6.63725448,2497.9,2497.8,10.01214292]
[1747692983916,6.08725448,2497.9,2497.8,10.01214292]
[1747692984584,6.08685888,2497.9,2497.8,10.01214292]
[1747692985691,6.08685888,2497.9,2497.8,8.67204304]
[1747692986100,6.08674594,2497.9,2497.8,18.17904304]
[1747692986727,6.56013139,2497.9,2497.8,18.17904304]
[1747692987242,5.81733139,2497.9,2497.8,18.17904304]
[1747692987892,5.06872335,2497.9,2497.8,18.17904304]
[1747692988716,4.47674827,2497.9,2497.8,18.17904304]
[1747692989825,4.00336282,2497.9,2497.8,18.17904304]
[1747692990228,4.22543726,2497.9,2497.8,18.17904304]
[1747692993536,4.22543726,2497.9,2497.8,8.67204304]
[1747692993737,4.22543726,2497.9,2497.8,17.88804304]
[1747692995143,4.22543726,2497.9,2497.8,8.67204304]
[1747692995439,4.22543726,2497.9,2497.8,17.88804304]
[1747692996840,4.00336282,2497.9,2497.8,17.88804304]
[1747692997944,4.00336282,2497.9,2497.8,8.67204304]
[1747692997945,5.71406282,2497.9,2497.8,8.67204304]
[1747692998107,5.16406282,2497.9,2497.8,8.67204304]
[1747692998308,5.53445596,2497.9,2497.8,8.67204304]
[1747692998507,4.37375596,2497.9,2497.8,8.67204304]
[1747692998828,4.59597543,2497.9,2497.8,8.67204304]
[1747692999420,4.96607911,2497.9,2497.8,8.67204304]
[1747692999741,5.81867213,2497.9,2497.8,8.67204304]
[1747693000545,6.36867213,2497.9,2497.8,8.67204304]
[1747693000915,5.81867213,2497.9,2497.8,8.67204304]
[1747693002250,5.34528668,2497.9,2497.8,8.67204304]
[1747693002945,15.02138668,2497.9,2497.8,8.67204304]
[1747693004186,6.47138668,2497.9,2497.8,8.67204304]
[1747693004483,5.34528668,2497.9,2497.8,8.67204304]
[1747693006964,5.81996146,2497.9,2497.8,8.67204304]
[1747693007521,5.44956832,2497.9,2497.8,8.67204304]
[1747693007722,5.8206207,2497.9,2497.8,8.67204304]
[1747693008527,5.34594592,2497.9,2497.8,8.67204304]
[1747693011139,6.45964592,2497.9,2497.8,8.67204304]
[1747693011447,7.00964592,2497.9,2497.8,8.67204304]
[1747693011761,6.45964592,2497.9,2497.8,8.67204304]
[1747693013401,7.09254563,2497.9,2497.8,8.67204304]
[1747693014402,7.64254563,2497.9,2497.8,8.67204304]
[1747693014591,7.09254563,2497.9,2497.8,8.67204304]
[1747693016800,7.64254563,2497.9,2497.8,8.67204304]
[1747693017185,7.64268778,2497.9,2497.8,7.3320718]
[1747693017374,15.64268778,2497.9,2497.8,7.3320718]
[1747693017956,15.64268778,2497.9,2497.8,6.37160023]
[1747693018284,15.64268778,2497.9,2497.8,6.1114692]
[1747693018693,15.00978807,2497.9,2497.8,4.67074902]
[1747693018887,14.7875686,2497.9,2497.8,4.67074902]
[1747693019087,15.01016585,2497.9,2497.8,4.67074902]
[1747693020581,14.46016585,2497.9,2497.8,4.67074902]
[1747693020786,10.02894549,2497.9,2497.8,4.67074902]
[1747693021102,10.57894549,2497.9,2497.8,4.67074902]
[1747693022591,10.02894549,2497.9,2497.8,4.67074902]
[1747693022790,10.02894549,2497.9,2497.8,4.6657736]
[1747693024069,8.91524549,2497.9,2497.8,4.6657736]
[1747693024671,3.36482175,2499.0,2497.8,5.8189736]
[1747693024874,3.31406618,2499.7,2498.3,2.392]
[1747693025174,3.31406618,2499.7,2498.2,0.1]
[1747693025175,3.11291245,2499.7,2498.8,8.0]
[1747693025389,3.11291245,2499.7,2498.7,14.5]
[1747693025390,3.80446622,2499.1,2499.0,8.0]
[1747693025590,3.80446622,2499.1,2499.0,13.64500766]
[1747693025791,5.60658179,2499.2,2499.1,13.17984051]
[1747693026118,3.11291245,2499.6,2499.2,8.0]
[1747693026268,3.11291245,2499.6,2499.4,1.1784]
[1747693026580,3.11291245,2499.6,2499.5,9.67497983]
[1747693026778,3.11291245,2499.6,2499.5,11.36051781]
[1747693027584,3.11291245,2499.6,2499.5,19.97296781]
[1747693027789,3.11291245,2499.6,2499.5,16.23276081]
[1747693028214,3.11291245,2499.6,2499.5,11.36051781]
[1747693028385,3.11291245,2499.6,2499.5,15.80304781]
[1747693029118,3.11291245,2499.6,2499.5,11.36051781]
[1747693030579,4.10021896,2499.9,2499.5,11.36051781]
[1747693030786,4.10021896,2499.9,2499.6,1.85389178]
[1747693032422,4.00048005,2499.7,2499.6,1.85389178]
[1747693032719,4.00039064,2499.8,2499.6,1.85389178]
[1747693033520,4.10020064,2499.9,2499.7,9.336]
[1747693035592,4.10022977,2499.9,2499.7,9.336]
[1747693036129,4.00032002,2499.8,2499.7,9.336]
[1747693037026,0.1,2499.9,2499.7,9.336]
[1747693037227,0.1,2499.9,2499.7,9.66995311]
[1747693037528,0.1,2499.9,2499.8,13.33695195]
[1747693037697,0.1,2499.9,2499.8,8.32238495]
[1747693038025,0.1,2499.9,2499.8,17.9609247]
[1747693038242,0.1,2499.9,2499.8,16.3712457]
[1747693038405,0.1,2499.9,2499.8,20.37156572]
[1747693040126,0.1,2499.9,2499.8,20.92156572]
[1747693040328,3.99895388,2500.7,2500.2,1.2065]
[1747693040533,3.99895388,2500.7,2500.3,26.93687297]
[1747693040839,3.99877796,2500.8,2500.4,3.14819692]
[1747693041154,0.1,2500.9,2500.4,3.14819692]
[1747693041439,3.99895636,2500.7,2500.5,17.332]
[1747693041646,3.99877406,2500.8,2500.5,17.332]
[1747693041803,3.99877406,2500.8,2500.6,2.04801969]
[1747693042608,3.99888031,2500.7,2500.6,2.04801969]
[1747693043229,0.1,2500.9,2500.6,2.04801969]
[1747693043432,3.99877942,2500.8,2500.6,2.04801969]
[1747693044139,4.09864277,2500.9,2500.6,2.04801969]
[1747693044332,4.09864277,2500.9,2500.7,1.93800197]
[1747693044649,3.9987204,2500.8,2500.7,3.14450197]
[1747693045848,3.9987204,2500.8,2500.7,1.93800197]
[1747693046528,3.9987204,2500.8,2500.7,9.329]
[1747693046724,0.1,2500.9,2500.7,9.329]
[1747693046929,3.9987204,2500.8,2500.7,9.329]
[1747693047417,4.0986201,2500.9,2500.7,9.329]
[1747693047616,0.1,2500.9,2500.7,9.329]
[1747693047818,0.1,2500.9,2500.8,2.25608329]
[1747693049353,0.1,2500.9,2500.8,12.70269529]
[1747693049554,4.09856051,2500.9,2500.8,10.67606429]
[1747693049722,4.09856051,2500.9,2500.8,2.25608329]
[1747693050241,0.1,2500.9,2500.8,10.25608329]
[1747693050862,4.09856051,2500.9,2500.8,10.25608329]
[1747693051057,0.1,2500.9,2500.8,23.07801791]
[1747693052328,0.1,2500.9,2500.8,35.00852091]
[1747693052564,0.1,2500.9,2500.8,35.03462091]
[1747693053672,0.1,2500.9,2500.8,25.18019151]
[1747693053892,0.1,2500.9,2500.8,41.06592091]
[1747693054855,0.1,2501.9,2501.3,9.2517]
[1747693055042,3.99760488,2501.5,2501.4,35.31817]
[1747693055242,3.99760143,2501.5,2501.4,35.31817]
[1747693056989,3.99729877,2501.7,2501.4,35.31817]
[1747693057199,0.32237677,2501.9,2501.4,26.18817]
[1747693057481,3.99760143,2501.5,2501.4,26.18817]
[1747693057655,3.99760143,2501.5,2501.4,35.31717]
[1747693060178,3.99760143,2501.5,2501.4,18.18817]
[1747693060380,3.99760143,2501.5,2501.4,26.392]
[1747693064795,4.22012506,2501.5,2501.4,26.392]
[1747693066666,4.59117957,2501.5,2501.4,26.392]
[1747693067661,4.96243306,2501.5,2501.4,26.392]
[1747693069689,4.59117957,2501.5,2501.4,26.392]
[1747693069997,4.59117957,2501.5,2501.4,29.0312]
[1747693071071,0.59357814,2501.5,2501.4,39.511181]
[1747693071268,0.37105451,2501.5,2501.4,37.964208]
[1747693071591,0.37105451,2501.5,2501.4,37.368875]
[1747693071787,0.37105451,2501.5,2501.4,34.975587]
[1747693072100,0.1,2501.9,2501.4,35.30931315]
[1747693072282,0.1,2501.9,2501.5,3.86464413]
[1747693072619,0.22301276,2501.8,2501.6,0.33369947]
[1747693073406,0.1,2501.9,2501.8,1.1732]
[1747693073590,0.1,2501.9,2501.8,1.50687279]
[1747693073794,4.0969623,2501.9,2501.8,0.33367279]
[1747693073989,4.0969623,2501.9,2501.8,1.16704007]
[1747693074194,4.0969623,2501.9,2501.8,18.29404007]
[1747693077804,4.0969623,2501.9,2501.4,17.263]
[1747693077805,3.99760143,2501.5,2501.4,17.263]
[1747693078111,3.99760143,2501.5,2501.4,26.39]
[1747693078278,3.99760143,2501.5,2501.4,34.39]
[1747693078809,3.99750559,2501.6,2501.4,34.39]
[1747693079009,3.99750559,2501.6,2501.5,3.439]
[1747693080395,3.99750559,2501.6,2501.5,11.439]
[1747693081107,3.99750559,2501.6,2501.5,20.566]
[1747693083515,5.17920559,2501.6,2501.5,16.839]
[1747693086117,3.99760143,2501.5,2501.4,17.263]
[1747693086421,3.99760143,2501.5,2501.4,26.103]
[1747693086922,4.22071742,2501.5,2501.4,26.103]
[1747693087121,4.59257774,2501.5,2501.4,17.263]
[1747693087420,4.59257774,2501.5,2501.4,26.103]
[1747693089526,4.59257774,2501.5,2501.4,17.263]
[1747693089724,4.59257774,2501.5,2501.4,26.103]
[1747693093838,4.59257774,2501.5,2501.4,17.263]
[1747693094038,4.59257774,2501.5,2501.4,26.103]
[1747693094239,5.14257774,2501.5,2501.4,17.263]
[1747693094436,5.14257774,2501.5,2501.4,26.103]
[1747693095033,4.59257774,2501.5,2501.4,26.103]
[1747693095337,4.59257774,2501.5,2501.4,36.7133]
[1747693095841,4.22071742,2501.5,2501.4,36.7133]
[1747693096022,3.99760143,2501.5,2501.4,36.7133]
[1747693096864,4.37801845,2501.6,2501.5,8.0]
[1747693097026,4.37801845,2501.6,2501.5,12.0981927]
[1747693097355,3.99753564,2501.6,2501.5,12.0981927]
[1747693097718,3.99736742,2501.7,2501.5,12.0981927]
[1747693098050,4.09698417,2501.9,2501.7,8.0]
[1747693098245,4.09698417,2501.9,2501.8,15.2298111]
[1747693098462,0.1,2501.9,2501.8,15.2298111]
[1747693098947,4.0969623,2501.9,2501.8,18.0778111]
[1747693100849,0.1,2501.9,2501.8,19.2561111]
[1747693101018,0.1,2501.9,2501.8,19.58978389]
[1747693101447,4.0969623,2501.9,2501.8,25.58178389]
[1747693101851,0.1,2501.9,2501.8,25.58178389]
[1747693103846,0.1,2501.9,2501.8,29.57790596]
[1747693104365,0.1,2501.9,2501.8,73.79865996]
[1747693106245,3.99575828,2502.7,2502.3,1.1938]
[1747693106467,3.99575828,2502.7,2502.5,8.0]
[1747693106666,0.1,2502.9,2502.5,8.33357946]
[1747693106987,0.1,2502.9,2502.6,55.410783]
[1747693107270,0.1,2502.9,2502.7,22.52292734]
[1747693107435,0.1,2502.9,2502.8,8.875167]
[1747693107631,0.1,2502.9,2502.8,10.5733509]
[1747693107858,0.1,2502.9,2502.8,23.16253947]
[1747693108166,0.1,2502.9,2502.8,27.15806448]
[1747693108367,0.1,2502.9,2502.8,42.08377148]
[1747693108670,0.1,2502.9,2502.8,38.08824647]
[1747693108873,0.1,2502.9,2502.8,42.08377148]
[1747693109172,0.1,2502.9,2502.8,46.18196418]
[1747693109548,0.1,2502.9,2502.8,42.18643917]
[1747693110675,0.1,2502.9,2502.8,46.18196418]
[1747693110878,0.1,2502.9,2502.8,47.39756418]
[1747693111177,0.1,2502.9,2502.8,36.58400117]
[1747693111571,0.1,2502.9,2502.8,35.84731817]
[1747693112280,0.1,2502.9,2502.8,21.02031817]
[1747693112478,0.1,2502.9,2502.8,35.84631817]
[1747693112676,0.1,2502.9,2502.8,28.47333217]
[1747693112879,0.1,2502.9,2502.8,41.43231817]
[1747693113862,0.1,2502.9,2502.8,36.30100117]
[1747693117871,0.1,2502.9,2502.8,21.47500117]
[1747693118069,0.1,2502.9,2502.8,28.50680847]
[1747693118480,4.09536537,2502.9,2502.8,8.33353947]
[1747693118684,0.1,2502.9,2502.8,22.91353947]
[1747693118868,0.1,2502.9,2502.8,31.60883947]
[1747693119069,0.1,2502.9,2502.8,34.76972342]
[1747693120868,0.1,2502.9,2502.8,20.18972342]
[1747693121189,0.1,2502.9,2502.8,33.23214142]
[1747693123696,4.09536537,2502.9,2502.8,26.07342342]
[1747693123871,4.09536537,2502.9,2502.8,29.97868242]
[1747693124276,4.09536537,2502.9,2502.8,29.63300442]
[1747693124477,4.09536537,2502.9,2502.8,20.08542342]
[1747693124806,4.09536537,2502.9,2502.8,26.07342342]
[1747693125504,4.09536537,2502.9,2502.8,20.08542342]
[1747693128217,0.1,2502.9,2502.8,20.08542342]
[1747693129891,4.09536537,2502.9,2502.8,20.08542342]
[1747693130887,4.09536537,2502.9,2502.8,12.08542342]
[1747693131091,4.09536537,2502.9,2502.8,8.92453947]
[1747693132414,4.09536537,2502.9,2502.8,26.17153947]
[1747693132801,0.1,2502.9,2502.8,26.17153947]
[1747693133119,0.1,2502.9,2502.8,34.17153947]
[1747693138518,0.1,2502.9,2502.8,40.15953947]
[1747693138519,4.09536537,2502.9,2502.8,40.15953947]
[1747693138720,4.09536537,2502.9,2502.8,43.64565226]
[1747693139719,4.09536537,2502.9,2502.8,40.15953947]
[1747693140414,0.1,2502.9,2502.8,40.15953947]
[1747693145618,0.1,2502.9,2502.8,55.74543047]
[1747693145805,0.1,2502.9,2502.8,49.27640647]
[1747693146006,0.1,2502.9,2502.8,47.97548347]
[1747693146207,0.1,2502.9,2502.8,52.07367617]
[1747693146728,0.1,2502.9,2502.8,50.13473217]
[1747693146927,0.1,2502.9,2502.8,62.12920118]
[1747693152129,0.1,2502.9,2502.8,56.06920118]
[1747693152724,0.1,2502.9,2502.8,52.07367617]
[1747693152933,0.1,2502.9,2502.8,58.13367617]
[1747693154134,0.1,2502.9,2502.8,62.12920118]
[1747693154733,3.99404966,2503.8,2503.2,8.0]
[1747693154896,3.99456738,2503.4,2503.3,8.74047285]
[1747693155093,5.18606738,2503.4,2503.3,8.74047285]
[1747693155297,3.99504614,2503.1,2503.0,8.0]
[1747693155536,3.99504614,2503.1,2503.0,16.407]
[1747693156032,3.99504614,2503.1,2503.0,19.78388329]
[1747693156533,3.99504614,2503.1,2503.0,11.37688329]
[1747693156834,3.99504614,2503.1,2503.0,8.407]
[1747693160413,3.99520575,2503.0,2502.9,8.0]
[1747693160614,3.99520575,2503.0,2502.9,16.407]
[1747693162442,5.17230575,2503.0,2502.9,16.407]
[1747693163017,5.17230575,2503.0,2502.9,8.407]
[1747693163317,5.17246537,2502.9,2502.8,17.247]
[1747693163517,5.17246537,2502.9,2502.8,33.654]
[1747693163939,5.3956809,2502.9,2502.8,33.654]
[1747693164221,5.76771006,2502.9,2502.8,33.654]
[1747693165227,5.76771006,2502.9,2502.8,37.0194]
[1747693165719,5.54449453,2502.9,2502.8,33.654]
[1747693166822,5.54449453,2502.9,2502.8,25.247]
[1747693167124,5.54449453,2502.9,2502.8,33.655]
[1747693167357,5.76739094,2502.9,2502.8,33.655]
[1747693168344,5.76739094,2502.9,2502.8,25.655]
[1747693168555,6.31739094,2502.9,2502.8,17.247]
[1747693168745,6.31739094,2502.9,2502.8,25.655]
[1747693171663,0.59492557,2502.9,2502.8,36.2205]
[1747693171848,4.71826178,2502.9,2502.8,36.2205]
[1747693172021,4.21826178,2502.9,2502.8,33.655]
[1747693172221,4.21826178,2502.9,2502.8,33.656]
[1747693172649,3.99536537,2502.9,2502.8,33.656]
[1747693173045,3.99536537,2502.9,2502.8,25.247]
[1747693173253,3.99536537,2502.9,2502.8,33.656]
[1747693176445,3.99536537,2502.9,2502.8,25.648]
[1747693178063,3.99536537,2502.9,2502.8,33.648]
[1747693184094,3.99536537,2502.9,2502.8,17.247]
[1747693184296,3.99536537,2502.9,2502.8,25.648]
[1747693184796,4.36665127,2502.9,2502.8,25.648]
[1747693185291,4.36665127,2502.9,2502.8,33.648]
[1747693185460,3.99536537,2502.9,2502.8,33.648]
[1747693188276,3.99536537,2502.9,2502.8,25.247]
[1747693188483,5.16466537,2502.9,2502.8,25.648]
[1747693189414,5.75918647,2502.9,2502.8,25.648]
[1747693189904,5.75918647,2502.9,2502.8,17.247]
[1747693190110,5.75918647,2502.9,2502.8,25.648]
[1747693191616,5.75918647,2502.9,2502.8,17.247]
[1747693191910,6.30918647,2502.9,2502.8,17.247]
[1747693192117,6.30918647,2502.9,2502.8,25.648]
[1747693192614,6.30918647,2502.9,2502.8,17.247]
[1747693192813,6.78252542,2502.9,2502.8,25.648]
[1747693196111,7.28252542,2502.9,2502.8,25.648]
[1747693196298,6.73252542,2502.9,2502.8,25.648]
[1747693196698,6.73252542,2502.9,2502.8,17.247]
[1747693196894,6.73252542,2502.9,2502.8,25.649]
[1747693197614,7.28252542,2502.9,2502.8,25.649]
[1747693198332,7.28252542,2502.9,2502.8,17.247]
[1747693198539,7.28252542,2502.9,2502.8,25.649]
[1747693199137,7.28252542,2502.9,2502.8,17.247]
[1747693199301,7.28252542,2502.9,2502.8,25.649]
[1747693199844,3.99664282,2502.1,2502.0,9.2109]
[1747693200127,3.99664282,2502.1,2502.0,35.37509]
[1747693201347,3.99664282,2502.1,2502.0,25.252]
[1747693201551,3.99664282,2502.1,2502.0,33.654]
[1747693202198,3.99664282,2502.1,2502.0,25.654]
[1747693202525,4.2192244,2502.1,2502.0,25.654]
[1747693202720,4.59079755,2502.1,2502.0,25.654]
[1747693203430,4.36821597,2502.1,2502.0,25.654]
[1747693203839,3.99664282,2502.1,2502.0,25.654]
[1747693206447,3.99664282,2502.1,2502.0,25.641]
[1747693210317,1.188,2501.8,2501.1,0.1]
[1747693210517,1.188,2501.8,2501.5,17.254]
[1747693210518,3.99744163,2501.6,2501.5,17.254]
[1747693215214,3.99744163,2501.6,2501.5,25.644]
[1747693219180,3.99744163,2501.6,2501.5,17.254]
[1747693219369,4.21978549,2501.6,2501.5,25.645]
[1747693220180,3.99744163,2501.6,2501.5,25.645]
[1747693220379,4.36901478,2501.6,2501.5,17.254]
[1747693220585,4.36901478,2501.6,2501.5,25.645]
[1747693221058,4.59135864,2501.6,2501.5,25.645]
[1747693223147,4.21978549,2501.6,2501.5,25.645]
[1747693223378,4.21978549,2501.6,2501.5,29.405]
[1747693223583,0.22234386,2501.6,2501.5,37.405]
[1747693223879,4.36874212,2501.8,2501.6,8.0]
[1747693224059,0.37157315,2501.8,2501.6,8.0]
[1747693224255,3.99728184,2501.7,2501.6,8.0]
[1747693224583,3.99720686,2501.8,2501.6,11.7405]
[1747693224967,3.99720686,2501.8,2501.7,1.1633]
[1747693225850,3.99712207,2501.8,2501.7,1.1633]
[1747693226671,3.99712207,2501.8,2501.7,16.391]
[1747693226874,3.99728184,2501.7,2501.6,8.0]
[1747693227095,3.99728184,2501.7,2501.6,16.391]
[1747693227270,3.99728184,2501.7,2501.6,18.33498981]
[1747693227989,3.99728184,2501.7,2501.6,19.51138981]
[1747693228590,3.99683413,2502.0,2501.6,19.51138981]
[1747693228954,3.99698312,2501.9,2501.6,19.51138981]
[1747693229176,3.99698312,2501.9,2501.7,3.67653898]
[1747693229377,3.99712207,2501.8,2501.7,3.67653898]
[1747693229754,3.99712207,2501.8,2501.7,11.67653898]
[1747693230050,3.99712207,2501.8,2501.7,20.06753898]
[1747693233286,3.99712207,2501.8,2501.7,16.39]
[1747693236898,3.99712207,2501.8,2501.7,8.0]
[1747693237203,3.99712207,2501.8,2501.7,16.369]
[1747693244761,5.13242207,2501.8,2501.7,16.369]
[1747693244965,5.13242207,2501.8,2501.7,8.369]
[1747693245164,5.3548049,2501.8,2501.7,8.369]
[1747693245361,5.72547977,2501.8,2501.7,8.369]
[1747693252413,3.99744163,2501.6,2501.5,17.254]
[1747693252775,3.99744163,2501.6,2501.5,25.623]
[1747693253071,4.3681165,2501.6,2501.5,25.623]
[1747693253277,4.59049933,2501.6,2501.5,25.623]
[1747693254235,4.59049933,2501.6,2501.5,17.254]
[1747693254544,4.59049933,2501.6,2501.5,25.624]
[1747693255528,4.59049933,2501.6,2501.5,17.254]
[1747693255826,4.59049933,2501.6,2501.5,25.624]
[1747693256805,0.5930577,2501.6,2501.5,36.1864]
[1747693257199,4.3681165,2501.6,2501.5,36.1864]
[1747693257635,3.99744163,2501.6,2501.5,36.1864]
[1747693258135,3.99744163,2501.6,2501.5,17.254]
[1747693258335,3.99744163,2501.6,2501.5,25.624]
[1747693260216,4.59050757,2501.6,2501.5,17.254]
[1747693260417,4.59050757,2501.6,2501.5,25.624]
[1747693261225,4.3681165,2501.6,2501.5,25.624]
[1747693262223,3.99744163,2501.6,2501.5,25.624]
[1747693263039,4.3681165,2501.6,2501.5,25.624]
[1747693263542,4.59054394,2501.6,2501.5,25.624]
[1747693264055,4.59054394,2501.6,2501.5,17.254]
[1747693264243,4.59054394,2501.6,2501.5,25.624]
[1747693264909,4.59054394,2501.6,2501.5,17.254]
[1747693265116,4.59054394,2501.6,2501.5,25.624]
[1747693265643,4.3681165,2501.6,2501.5,25.624]
[1747693266831,4.59056339,2501.6,2501.5,25.624]
[1747693267957,4.3681165,2501.6,2501.5,25.624]
[1747693268979,4.36827125,2501.6,2501.5,25.624]
[1747693270175,4.59076907,2501.6,2501.5,25.624]
[1747693272745,4.59076907,2501.6,2501.5,37.3018]
[1747693273054,4.36827125,2501.6,2501.5,37.3018]
[1747693273655,3.99744163,2501.6,2501.5,37.3018]
[1747693274476,3.99744163,2501.6,2501.5,34.7394]
[1747693274646,3.99744163,2501.6,2501.5,33.624]
[1747693274847,3.99744163,2501.6,2501.5,17.254]
[1747693275048,3.99808092,2501.2,2501.1,6.16]
[1747693275361,3.99808092,2501.2,2501.1,25.703]
[1747693275754,4.36938508,2501.2,2501.1,25.703]
[1747693276758,4.36938508,2501.2,2501.1,0.1]
[1747693276958,4.36938508,2501.2,2501.1,25.703]
[1747693280568,4.36938508,2501.2,2501.1,0.1]
[1747693280768,4.36938508,2501.2,2501.1,25.704]
[1747693281148,4.36938508,2501.2,2501.1,17.36]
[1747693281355,4.36938508,2501.2,2501.1,25.704]
[1747693284051,3.99808092,2501.2,2501.1,25.704]
[1747693285456,3.99808092,2501.2,2501.1,28.38683]
[1747693285657,3.99808092,2501.2,2501.1,36.38683]
[1747693286589,3.99808092,2501.2,2501.1,28.38683]
[1747693288158,3.99808092,2501.2,2501.1,25.704]
[1747693289401,3.99808092,2501.2,2501.1,17.36]
[1747693289702,3.99808092,2501.2,2501.1,25.704]
[1747693290870,5.19038092,2501.2,2501.1,17.36]
[1747693291073,5.56120603,2501.2,2501.1,0.1]
[1747693291275,6.16119405,2501.2,2501.1,0.1]
[1747693291701,6.38398173,2501.2,2501.1,0.1]
[1747693291901,14.38398173,2501.2,2501.1,0.1]
[1747693292116,3.99968002,2500.2,2500.1,0.1]
[1747693292298,3.99968002,2500.2,2500.1,8.444]
[1747693296714,3.99683676,2500.2,2500.1,8.444]
[1747693300227,3.99683676,2500.2,2500.1,8.418]
[1747693300432,3.99683676,2500.2,2500.1,0.1]
[1747693300433,5.10083676,2500.2,2500.1,0.1]
[1747693300598,6.2907725,2500.2,2500.1,0.1]
[1747693301206,15.869435,2500.2,2500.1,0.1]
[1747693301407,15.81942818,2500.2,2500.1,0.1]
[1747693302216,5.67026023,2499.4,2499.2,17.265]
[1747693302419,4.0012804,2499.2,2499.1,0.1]
[1747693302741,4.0012804,2499.2,2499.1,8.418]
[1747693305944,4.0012804,2499.2,2499.1,9.2598]
[1747693306143,1.5786625,2500.1,2499.1,9.2598]
[1747693306144,1.2201,2499.8,2499.2,8.0]
[1747693306449,4.0010688,2499.4,2499.1,9.2598]
[1747693306926,4.0012804,2499.2,2499.1,8.9418]
[1747693307120,4.0012804,2499.2,2499.1,16.42]
[1747693308465,4.00119725,2499.3,2499.2,8.0]
[1747693308794,4.00119725,2499.3,2499.1,8.42]
[1747693309057,4.0010191,2499.4,2499.1,8.42]
[1747693309228,4.0010191,2499.4,2499.2,8.0]
[1747693309631,4.00069663,2499.6,2499.2,9.642]
[1747693309815,4.00069663,2499.6,2499.3,1.1179]
[1747693310067,1.1767,2500.3,2499.5,8.0]
[1747693310231,1.1767,2500.3,2499.7,8.0]
[1747693310547,4.00034718,2499.8,2499.7,8.0]
[1747693310738,4.00034718,2499.8,2499.7,9.6321]
[1747693315636,4.00071696,2499.6,2499.5,8.0]
[1747693315834,4.00055755,2499.7,2499.5,16.32]
[1747693316244,4.00055755,2499.7,2499.5,8.0]
[1747693316451,4.00055755,2499.7,2499.6,8.32]
[1747693317364,4.00055755,2499.7,2499.6,9.43336767]
[1747693317936,4.00039822,2499.8,2499.7,8.0]
[1747693318371,4.00016772,2499.9,2499.7,9.1638]
[1747693318372,4.00024835,2499.9,2499.7,9.1638]
[1747693318590,4.00032002,2499.8,2499.7,9.1638]
[1747693320668,4.00032002,2499.8,2499.7,8.0]
[1747693320864,4.00023425,2499.9,2499.7,8.0]
[1747693321067,1.1767,2500.3,2499.7,15.80606]
[1747693321068,0.36943229,2500.3,2499.7,15.80606]
[1747693321277,0.36943229,2500.3,2499.9,1.1551]
[1747693321278,3.99968235,2500.2,2499.9,1.1551]
[1747693321487,0.36943229,2500.3,2499.9,1.1551]
[1747693321651,0.36943229,2500.3,2500.0,1.1551]
[1747693321977,0.36943229,2500.3,2500.1,16.32]
[1747693322161,0.36943229,2500.3,2500.2,2.1808926]
[1747693322481,3.99922817,2500.5,2500.2,2.1808926]
[1747693322689,3.99922817,2500.5,2500.2,2.51477893]
[1747693322982,3.99896563,2500.7,2500.3,1.43967297]
[1747693323195,5.13304147,2501.0,2500.5,8.0]
[1747693323396,3.99865512,2500.9,2500.6,10.847]
[1747693323580,1.1346,2501.2,2500.7,8.0]
[1747693323581,3.9987204,2500.8,2500.7,8.0]
[1747693324599,3.99904023,2500.6,2500.5,6.06]
[1747693324754,3.99904023,2500.6,2500.5,22.38]
[1747693325702,3.99904023,2500.6,2500.5,22.379]
[1747693326005,3.99920015,2500.5,2500.4,17.27]
[1747693326180,5.21340015,2500.5,2500.4,17.27]